Department Family,Entity,Date,Expense Type,Expense Area,Supplier,Transaction Number,AP Amount
Department of Health,St. Helens&Knowsley Hospitals NHS Trust,30/11/2018,Blood Products,HAEM + BLOOD TRANSFUSION,NHS BLOOD & TRANSPLANT,28613346,"-27,683.90"
Department of Health,St. Helens&Knowsley Hospitals NHS Trust,30/11/2018,Blood Products,HAEM + BLOOD TRANSFUSION,NHS BLOOD & TRANSPLANT,28665636,"110,225.51"
Department of Health,St. Helens&Knowsley Hospitals NHS Trust,30/11/2018,CNST contributions,CLINICAL NEGLIGENCE,,SSC NHSLA CNST,"976,644.70 "
Department of Health,St. Helens&Knowsley Hospitals NHS Trust,30/11/2018,Computer Hardware Purch,TRUST IT SYSTEMS,SYSTEM C HEALTHCARE LTD,28668885,"437,215.38"
Department of Health,St. Helens&Knowsley Hospitals NHS Trust,30/11/2018,Computer Hardware Purch,Trust Recharges,BT PLC,28712912,"25,959.64"
Department of Health,St. Helens&Knowsley Hospitals NHS Trust,30/11/2018,Computer Maintenance,TRUST IT SYSTEMS,INSIGHT DIRECT (UK) LTD,28521202,"52,323.60"
Department of Health,St. Helens&Knowsley Hospitals NHS Trust,30/11/2018,Continence Products,COMMUNITY CONTINENCE SERVICE,ESSITY UK LTD,28516454,"25,462.12"
Department of Health,St. Helens&Knowsley Hospitals NHS Trust,30/11/2018,Continence Products,COMMUNITY CONTINENCE SERVICE,ESSITY UK LTD,28691368,"43,162.59"
Department of Health,St. Helens&Knowsley Hospitals NHS Trust,30/11/2018,Data Lines,HIS programme costs - shared services,VIRGIN MEDIA BUSINESS LTD,28822313,"594,734.40"
Department of Health,St. Helens&Knowsley Hospitals NHS Trust,30/11/2018,Data Lines,HIS programme costs - shared services,VIRGIN MEDIA BUSINESS LTD,28822316,"698,820.18"
Department of Health,St. Helens&Knowsley Hospitals NHS Trust,30/11/2018,Indemnity Insurance,WEST MIDLANDS PROJECT,MDU SERVICES LTD,28761684,"198,115.00"
Department of Health,St. Helens&Knowsley Hospitals NHS Trust,30/11/2018,Indemnity Insurance,MERSEY DEANERY PROJECT,MDU SERVICES LTD,28761691,"65,810.00"
Department of Health,St. Helens&Knowsley Hospitals NHS Trust,30/11/2018,Indemnity Insurance,MERSEY DEANERY PROJECT,MDU SERVICES LTD,28761694,"78,412.00"
Department of Health,St. Helens&Knowsley Hospitals NHS Trust,30/11/2018,Administration Fee,A + E MEDICAL STAFF WH,LIAISON FINANCIAL SERVICES LTD,28638345,226.90
Department of Health,St. Helens&Knowsley Hospitals NHS Trust,30/11/2018,Administration Fee,ACUTE MEDICAL UNIT,LIAISON FINANCIAL SERVICES LTD,28638345,145.17
Department of Health,St. Helens&Knowsley Hospitals NHS Trust,30/11/2018,Administration Fee,B + P MEDICAL STAFF,LIAISON FINANCIAL SERVICES LTD,28638345,135.23
Department of Health,St. Helens&Knowsley Hospitals NHS Trust,30/11/2018,Administration Fee,CARDIO-RESPIRATORY (ECG),LIAISON FINANCIAL SERVICES LTD,28638345,98.86
Department of Health,St. Helens&Knowsley Hospitals NHS Trust,30/11/2018,Administration Fee,CARE OF ELDERLY MED STAFF,LIAISON FINANCIAL SERVICES LTD,28638345,145.24
Department of Health,St. Helens&Knowsley Hospitals NHS Trust,30/11/2018,Administration Fee,DERMATOLOGY,LIAISON FINANCIAL SERVICES LTD,28638345,427.11
Department of Health,St. Helens&Knowsley Hospitals NHS Trust,30/11/2018,Administration Fee,FRACTURE CLINIC,LIAISON FINANCIAL SERVICES LTD,28638345,47.11
Department of Health,St. Helens&Knowsley Hospitals NHS Trust,30/11/2018,Administration Fee,GEN MEDICINE MEDICAL STF,LIAISON FINANCIAL SERVICES LTD,28638345,222.43
Department of Health,St. Helens&Knowsley Hospitals NHS Trust,30/11/2018,Administration Fee,GENERAL SURGERY MEDICAL,LIAISON FINANCIAL SERVICES LTD,28638345,126.79
Department of Health,St. Helens&Knowsley Hospitals NHS Trust,30/11/2018,Administration Fee,OBS + GYNAE MEDICAL STAFF,LIAISON FINANCIAL SERVICES LTD,28638345,222.35
Department of Health,St. Helens&Knowsley Hospitals NHS Trust,30/11/2018,Administration Fee,OPHTHALMOLOGY MEDICAL,LIAISON FINANCIAL SERVICES LTD,28638345,104.27
Department of Health,St. Helens&Knowsley Hospitals NHS Trust,30/11/2018,Administration Fee,ORTHOPAEDIC MEDICAL STAFF,LIAISON FINANCIAL SERVICES LTD,28638345,16.84
Department of Health,St. Helens&Knowsley Hospitals NHS Trust,30/11/2018,Administration Fee,PHARMACY GENERAL,LIAISON FINANCIAL SERVICES LTD,28638345,135.16
Department of Health,St. Helens&Knowsley Hospitals NHS Trust,30/11/2018,Administration Fee,RADIOLOGY MEDICAL STAFF,LIAISON FINANCIAL SERVICES LTD,28638345,304.07
Department of Health,St. Helens&Knowsley Hospitals NHS Trust,30/11/2018,Administration Fee,SOHT Blood Sciences,LIAISON FINANCIAL SERVICES LTD,28638345,103.00
Department of Health,St. Helens&Knowsley Hospitals NHS Trust,30/11/2018,Administration Fee,THEATRES MEDICAL STAFF,LIAISON FINANCIAL SERVICES LTD,28638345,224.25
Department of Health,St. Helens&Knowsley Hospitals NHS Trust,30/11/2018,Administration Fee,UROLOGY MEDICAL STAFF,LIAISON FINANCIAL SERVICES LTD,28638345,58.62
Department of Health,St. Helens&Knowsley Hospitals NHS Trust,30/11/2018,Administration Fee,A + E MEDICAL STAFF WH,LIAISON FINANCIAL SERVICES LTD,28638346,447.77
Department of Health,St. Helens&Knowsley Hospitals NHS Trust,30/11/2018,Administration Fee,ACUTE MEDICAL UNIT,LIAISON FINANCIAL SERVICES LTD,28638346,145.17
Department of Health,St. Helens&Knowsley Hospitals NHS Trust,30/11/2018,Administration Fee,CARDIO-RESPIRATORY (ECG),LIAISON FINANCIAL SERVICES LTD,28638346,231.41
Department of Health,St. Helens&Knowsley Hospitals NHS Trust,30/11/2018,Administration Fee,CARE OF ELDERLY MED STAFF,LIAISON FINANCIAL SERVICES LTD,28638346,139.11
Department of Health,St. Helens&Knowsley Hospitals NHS Trust,30/11/2018,Administration Fee,DERMATOLOGY,LIAISON FINANCIAL SERVICES LTD,28638346,228.45
Department of Health,St. Helens&Knowsley Hospitals NHS Trust,30/11/2018,Administration Fee,FRACTURE CLINIC,LIAISON FINANCIAL SERVICES LTD,28638346,5.64
Department of Health,St. Helens&Knowsley Hospitals NHS Trust,30/11/2018,Administration Fee,GEN MEDICINE MEDICAL STF,LIAISON FINANCIAL SERVICES LTD,28638346,124.75
Department of Health,St. Helens&Knowsley Hospitals NHS Trust,30/11/2018,Administration Fee,GENERAL SURGERY MEDICAL,LIAISON FINANCIAL SERVICES LTD,28638346,78.05
Department of Health,St. Helens&Knowsley Hospitals NHS Trust,30/11/2018,Administration Fee,OBS + GYNAE MEDICAL STAFF,LIAISON FINANCIAL SERVICES LTD,28638346,587.15
Department of Health,St. Helens&Knowsley Hospitals NHS Trust,30/11/2018,Administration Fee,PHARMACY GENERAL,LIAISON FINANCIAL SERVICES LTD,28638346,168.87
Department of Health,St. Helens&Knowsley Hospitals NHS Trust,30/11/2018,Administration Fee,RADIOLOGY MEDICAL STAFF,LIAISON FINANCIAL SERVICES LTD,28638346,327.76
Department of Health,St. Helens&Knowsley Hospitals NHS Trust,30/11/2018,Administration Fee,SOHT Blood Sciences,LIAISON FINANCIAL SERVICES LTD,28638346,149.13
Department of Health,St. Helens&Knowsley Hospitals NHS Trust,30/11/2018,Administration Fee,SOHT Microbiology Medical Staff,LIAISON FINANCIAL SERVICES LTD,28638346,75.87
Department of Health,St. Helens&Knowsley Hospitals NHS Trust,30/11/2018,Administration Fee,UROLOGY MEDICAL STAFF,LIAISON FINANCIAL SERVICES LTD,28638346,178.83
Department of Health,St. Helens&Knowsley Hospitals NHS Trust,30/11/2018,Administration Fee,A + E MEDICAL STAFF WH,LIAISON FINANCIAL SERVICES LTD,28711851,223.79
Department of Health,St. Helens&Knowsley Hospitals NHS Trust,30/11/2018,Administration Fee,B + P MEDICAL STAFF,LIAISON FINANCIAL SERVICES LTD,28711851,129.46
Department of Health,St. Helens&Knowsley Hospitals NHS Trust,30/11/2018,Administration Fee,CARDIO-RESPIRATORY (ECG),LIAISON FINANCIAL SERVICES LTD,28711851,104.11
Department of Health,St. Helens&Knowsley Hospitals NHS Trust,30/11/2018,Administration Fee,CARE OF ELDERLY MED STAFF,LIAISON FINANCIAL SERVICES LTD,28711851,116.52
Department of Health,St. Helens&Knowsley Hospitals NHS Trust,30/11/2018,Administration Fee,DERMATOLOGY,LIAISON FINANCIAL SERVICES LTD,28711851,426.70
Department of Health,St. Helens&Knowsley Hospitals NHS Trust,30/11/2018,Administration Fee,FRACTURE CLINIC,LIAISON FINANCIAL SERVICES LTD,28711851,5.63
Department of Health,St. Helens&Knowsley Hospitals NHS Trust,30/11/2018,Administration Fee,GEN MEDICINE MEDICAL STF,LIAISON FINANCIAL SERVICES LTD,28711851,203.63
Department of Health,St. Helens&Knowsley Hospitals NHS Trust,30/11/2018,Administration Fee,GENERAL SURGERY MEDICAL,LIAISON FINANCIAL SERVICES LTD,28711851,104.06
Department of Health,St. Helens&Knowsley Hospitals NHS Trust,30/11/2018,Administration Fee,OBS + GYNAE MEDICAL STAFF,LIAISON FINANCIAL SERVICES LTD,28711851,477.86
Department of Health,St. Helens&Knowsley Hospitals NHS Trust,30/11/2018,Administration Fee,OPHTHALMOLOGY MEDICAL,LIAISON FINANCIAL SERVICES LTD,28711851,103.41
Department of Health,St. Helens&Knowsley Hospitals NHS Trust,30/11/2018,Administration Fee,PHARMACY GENERAL,LIAISON FINANCIAL SERVICES LTD,28711851,157.95
Department of Health,St. Helens&Knowsley Hospitals NHS Trust,30/11/2018,Administration Fee,RADIOLOGY MEDICAL STAFF,LIAISON FINANCIAL SERVICES LTD,28711851,310.96
Department of Health,St. Helens&Knowsley Hospitals NHS Trust,30/11/2018,Administration Fee,SOHT Blood Sciences,LIAISON FINANCIAL SERVICES LTD,28711851,123.52
Department of Health,St. Helens&Knowsley Hospitals NHS Trust,30/11/2018,Administration Fee,SOHT Microbiology Medical Staff,LIAISON FINANCIAL SERVICES LTD,28711851,74.10
Department of Health,St. Helens&Knowsley Hospitals NHS Trust,30/11/2018,Administration Fee,UROLOGY MEDICAL STAFF,LIAISON FINANCIAL SERVICES LTD,28711851,68.47
Department of Health,St. Helens&Knowsley Hospitals NHS Trust,30/11/2018,Administration Fee,A + E MEDICAL STAFF WH,LIAISON FINANCIAL SERVICES LTD,28711859,440.12
Department of Health,St. Helens&Knowsley Hospitals NHS Trust,30/11/2018,Administration Fee,B + P MEDICAL STAFF,LIAISON FINANCIAL SERVICES LTD,28711859,63.61
Department of Health,St. Helens&Knowsley Hospitals NHS Trust,30/11/2018,Administration Fee,CARDIO-RESPIRATORY (ECG),LIAISON FINANCIAL SERVICES LTD,28711859,110.87
Department of Health,St. Helens&Knowsley Hospitals NHS Trust,30/11/2018,Administration Fee,CARE OF ELDERLY MED STAFF,LIAISON FINANCIAL SERVICES LTD,28711859,175.88
Department of Health,St. Helens&Knowsley Hospitals NHS Trust,30/11/2018,Administration Fee,DERMATOLOGY,LIAISON FINANCIAL SERVICES LTD,28711859,427.08
Department of Health,St. Helens&Knowsley Hospitals NHS Trust,30/11/2018,Administration Fee,FRACTURE CLINIC,LIAISON FINANCIAL SERVICES LTD,28711859,18.74
Department of Health,St. Helens&Knowsley Hospitals NHS Trust,30/11/2018,Administration Fee,GEN MEDICINE MEDICAL STF,LIAISON FINANCIAL SERVICES LTD,28711859,203.80
Department of Health,St. Helens&Knowsley Hospitals NHS Trust,30/11/2018,Administration Fee,GENERAL SURGERY MEDICAL,LIAISON FINANCIAL SERVICES LTD,28711859,102.89
Department of Health,St. Helens&Knowsley Hospitals NHS Trust,30/11/2018,Administration Fee,OBS + GYNAE MEDICAL STAFF,LIAISON FINANCIAL SERVICES LTD,28711859,346.52
Department of Health,St. Helens&Knowsley Hospitals NHS Trust,30/11/2018,Administration Fee,OPHTHALMOLOGY MEDICAL,LIAISON FINANCIAL SERVICES LTD,28711859,207.00
Department of Health,St. Helens&Knowsley Hospitals NHS Trust,30/11/2018,Administration Fee,PHARMACY GENERAL,LIAISON FINANCIAL SERVICES LTD,28711859,134.13
Department of Health,St. Helens&Knowsley Hospitals NHS Trust,30/11/2018,Administration Fee,RADIOLOGY MEDICAL STAFF,LIAISON FINANCIAL SERVICES LTD,28711859,281.48
Department of Health,St. Helens&Knowsley Hospitals NHS Trust,30/11/2018,Administration Fee,SOHT Blood Sciences,LIAISON FINANCIAL SERVICES LTD,28711859,178.56
Department of Health,St. Helens&Knowsley Hospitals NHS Trust,30/11/2018,Administration Fee,SOHT Microbiology Medical Staff,LIAISON FINANCIAL SERVICES LTD,28711859,130.42
Department of Health,St. Helens&Knowsley Hospitals NHS Trust,30/11/2018,Administration Fee,UROLOGY MEDICAL STAFF,LIAISON FINANCIAL SERVICES LTD,28711859,73.48
Department of Health,St. Helens&Knowsley Hospitals NHS Trust,30/11/2018,Administration Fee,A + E MEDICAL STAFF WH,LIAISON FINANCIAL SERVICES LTD,28711865,"-2,056.09"
Department of Health,St. Helens&Knowsley Hospitals NHS Trust,30/11/2018,Administration Fee,ACUTE MEDICAL UNIT,LIAISON FINANCIAL SERVICES LTD,28711865,-616.91
Department of Health,St. Helens&Knowsley Hospitals NHS Trust,30/11/2018,Administration Fee,B + P MEDICAL STAFF,LIAISON FINANCIAL SERVICES LTD,28711865,-701.18
Department of Health,St. Helens&Knowsley Hospitals NHS Trust,30/11/2018,Administration Fee,CARDIO-RESPIRATORY (ECG),LIAISON FINANCIAL SERVICES LTD,28711865,40.43
Department of Health,St. Helens&Knowsley Hospitals NHS Trust,30/11/2018,Administration Fee,CARDIOLOGY SNR MEDICAL,LIAISON FINANCIAL SERVICES LTD,28711865,-776.96
Department of Health,St. Helens&Knowsley Hospitals NHS Trust,30/11/2018,Administration Fee,CARE OF ELDERLY MED STAFF,LIAISON FINANCIAL SERVICES LTD,28711865,-86.74
Department of Health,St. Helens&Knowsley Hospitals NHS Trust,30/11/2018,Administration Fee,DERMATOLOGY,LIAISON FINANCIAL SERVICES LTD,28711865,-678.05
Department of Health,St. Helens&Knowsley Hospitals NHS Trust,30/11/2018,Administration Fee,ENT MEDICAL STAFF,LIAISON FINANCIAL SERVICES LTD,28711865,-93.85
Department of Health,St. Helens&Knowsley Hospitals NHS Trust,30/11/2018,Administration Fee,FRACTURE CLINIC,LIAISON FINANCIAL SERVICES LTD,28711865,-83.18
Department of Health,St. Helens&Knowsley Hospitals NHS Trust,30/11/2018,Administration Fee,GEN MEDICINE MEDICAL STF,LIAISON FINANCIAL SERVICES LTD,28711865,-241.45
Department of Health,St. Helens&Knowsley Hospitals NHS Trust,30/11/2018,Administration Fee,GENERAL SURGERY MEDICAL,LIAISON FINANCIAL SERVICES LTD,28711865,-295.55
Department of Health,St. Helens&Knowsley Hospitals NHS Trust,30/11/2018,Administration Fee,NEWTON INTERMEDIATE CARE SERVICE,LIAISON FINANCIAL SERVICES LTD,28711865,-22.65
Department of Health,St. Helens&Knowsley Hospitals NHS Trust,30/11/2018,Administration Fee,OBS + GYNAE MEDICAL STAFF,LIAISON FINANCIAL SERVICES LTD,28711865,-642.86
Department of Health,St. Helens&Knowsley Hospitals NHS Trust,30/11/2018,Administration Fee,OPHTHALMOLOGY MEDICAL,LIAISON FINANCIAL SERVICES LTD,28711865,-595.60
Department of Health,St. Helens&Knowsley Hospitals NHS Trust,30/11/2018,Administration Fee,ORTHOPAEDIC MEDICAL STAFF,LIAISON FINANCIAL SERVICES LTD,28711865,-69.27
Department of Health,St. Helens&Knowsley Hospitals NHS Trust,30/11/2018,Administration Fee,PAEDIATRIC MEDICAL STAFF,LIAISON FINANCIAL SERVICES LTD,28711865,-265.20
Department of Health,St. Helens&Knowsley Hospitals NHS Trust,30/11/2018,Administration Fee,PHARMACY GENERAL,LIAISON FINANCIAL SERVICES LTD,28711865,-465.08
Department of Health,St. Helens&Knowsley Hospitals NHS Trust,30/11/2018,Administration Fee,RADIOLOGY MEDICAL STAFF,LIAISON FINANCIAL SERVICES LTD,28711865,-329.54
Department of Health,St. Helens&Knowsley Hospitals NHS Trust,30/11/2018,Administration Fee,RESPIRATORY SNR MEDICAL,LIAISON FINANCIAL SERVICES LTD,28711865,-581.66
Department of Health,St. Helens&Knowsley Hospitals NHS Trust,30/11/2018,Administration Fee,SEDDON SUITE TRAUMA REHAB UNIT,LIAISON FINANCIAL SERVICES LTD,28711865,-171.56
Department of Health,St. Helens&Knowsley Hospitals NHS Trust,30/11/2018,Administration Fee,SOHT Blood Sciences,LIAISON FINANCIAL SERVICES LTD,28711865,-179.68
Department of Health,St. Helens&Knowsley Hospitals NHS Trust,30/11/2018,Administration Fee,THEATRES MEDICAL STAFF,LIAISON FINANCIAL SERVICES LTD,28711865,-773.61
Department of Health,St. Helens&Knowsley Hospitals NHS Trust,30/11/2018,Administration Fee,UROLOGY MEDICAL STAFF,LIAISON FINANCIAL SERVICES LTD,28711865,-295.61
Department of Health,St. Helens&Knowsley Hospitals NHS Trust,30/11/2018,Administration Fee,A + E MEDICAL STAFF WH,LIAISON FINANCIAL SERVICES LTD,28711871,163.97
Department of Health,St. Helens&Knowsley Hospitals NHS Trust,30/11/2018,Administration Fee,ACUTE MEDICAL UNIT,LIAISON FINANCIAL SERVICES LTD,28711871,187.94
Department of Health,St. Helens&Knowsley Hospitals NHS Trust,30/11/2018,Administration Fee,B + P MEDICAL STAFF,LIAISON FINANCIAL SERVICES LTD,28711871,-2.30
Department of Health,St. Helens&Knowsley Hospitals NHS Trust,30/11/2018,Administration Fee,CARDIO-RESPIRATORY (ECG),LIAISON FINANCIAL SERVICES LTD,28711871,96.77
Department of Health,St. Helens&Knowsley Hospitals NHS Trust,30/11/2018,Administration Fee,CARE OF ELDERLY MED STAFF,LIAISON FINANCIAL SERVICES LTD,28711871,145.66
Department of Health,St. Helens&Knowsley Hospitals NHS Trust,30/11/2018,Administration Fee,DERMATOLOGY,LIAISON FINANCIAL SERVICES LTD,28711871,430.29
Department of Health,St. Helens&Knowsley Hospitals NHS Trust,30/11/2018,Administration Fee,FRACTURE CLINIC,LIAISON FINANCIAL SERVICES LTD,28711871,5.28
Department of Health,St. Helens&Knowsley Hospitals NHS Trust,30/11/2018,Administration Fee,GEN MEDICINE MEDICAL STF,LIAISON FINANCIAL SERVICES LTD,28711871,221.51
Department of Health,St. Helens&Knowsley Hospitals NHS Trust,30/11/2018,Administration Fee,GENERAL SURGERY MEDICAL,LIAISON FINANCIAL SERVICES LTD,28711871,18.20
Department of Health,St. Helens&Knowsley Hospitals NHS Trust,30/11/2018,Administration Fee,OBS + GYNAE MEDICAL STAFF,LIAISON FINANCIAL SERVICES LTD,28711871,388.75
Department of Health,St. Helens&Knowsley Hospitals NHS Trust,30/11/2018,Administration Fee,OPHTHALMOLOGY MEDICAL,LIAISON FINANCIAL SERVICES LTD,28711871,130.76
Department of Health,St. Helens&Knowsley Hospitals NHS Trust,30/11/2018,Administration Fee,PAEDIATRIC MEDICAL STAFF,LIAISON FINANCIAL SERVICES LTD,28711871,141.91
Department of Health,St. Helens&Knowsley Hospitals NHS Trust,30/11/2018,Administration Fee,PHARMACY GENERAL,LIAISON FINANCIAL SERVICES LTD,28711871,127.40
Department of Health,St. Helens&Knowsley Hospitals NHS Trust,30/11/2018,Administration Fee,RADIOLOGY MEDICAL STAFF,LIAISON FINANCIAL SERVICES LTD,28711871,301.76
Department of Health,St. Helens&Knowsley Hospitals NHS Trust,30/11/2018,Administration Fee,SOHT Blood Sciences,LIAISON FINANCIAL SERVICES LTD,28711871,111.42
Department of Health,St. Helens&Knowsley Hospitals NHS Trust,30/11/2018,Administration Fee,SOHT Microbiology Medical Staff,LIAISON FINANCIAL SERVICES LTD,28711871,184.23
Department of Health,St. Helens&Knowsley Hospitals NHS Trust,30/11/2018,Administration Fee,UROLOGY MEDICAL STAFF,LIAISON FINANCIAL SERVICES LTD,28711871,95.39
Department of Health,St. Helens&Knowsley Hospitals NHS Trust,30/11/2018,Independent Sector,A + E MEDICAL STAFF WH,ST HELENS ROTA,28598676,"41,580.00"
Department of Health,St. Helens&Knowsley Hospitals NHS Trust,30/11/2018,Laboratory Chemicals,HAEM + BLOOD TRANSFUSION,SYSMEX UK LTD,28521385,"49,202.39"
Department of Health,St. Helens&Knowsley Hospitals NHS Trust,30/11/2018,Laboratory Chemicals,HAEM + BLOOD TRANSFUSION,SYSMEX UK LTD,28717178,"49,202.39"
Department of Health,St. Helens&Knowsley Hospitals NHS Trust,30/11/2018,Laboratory Test Kits,POINT OF CARE,CHRYSTAL CONSULTING LTD,28588428,"27,914.02"
Department of Health,St. Helens&Knowsley Hospitals NHS Trust,30/11/2018,Lease Rents,PFI DESIGN + CONSTRUCTION,EDDISONS COMMERCIAL PROPERTY MANAGEMENT LTD,28795673,"52,000.00"
Department of Health,St. Helens&Knowsley Hospitals NHS Trust,30/11/2018,Med & Surg Equip General,GEN MED ENDOSCOPY H2,AAH PHARMACEUTICALS LTD,28811533,193.80
Department of Health,St. Helens&Knowsley Hospitals NHS Trust,30/11/2018,Med & Surg Equip General,THEATRES MAIN ST HELEN'S,AAH PHARMACEUTICALS LTD,28811533,261.00
Department of Health,St. Helens&Knowsley Hospitals NHS Trust,30/11/2018,Med & Surg Equip Leases,CHEMICAL PATHOLOGY DEPT,SIEMENS HEALTHCARE DIAGNOSTICS LTD,28527084,"168,915.37"
Department of Health,St. Helens&Knowsley Hospitals NHS Trust,30/11/2018,Med & Surg Equip Leases,CHEMICAL PATHOLOGY DEPT,SIEMENS HEALTHCARE DIAGNOSTICS LTD,28527089,"168,915.37"
Department of Health,St. Helens&Knowsley Hospitals NHS Trust,30/11/2018,Med & Surg Equip Leases,CHEMICAL PATHOLOGY DEPT,SIEMENS HEALTHCARE DIAGNOSTICS LTD,28532010,"168,915.37"
Department of Health,St. Helens&Knowsley Hospitals NHS Trust,30/11/2018,Med & Surg Maint Contract,Cold Decontamination,IM MED LTD,28577559,"29,746.12"
Department of Health,St. Helens&Knowsley Hospitals NHS Trust,30/11/2018,Med & Surg Maint Contract,Cold Decontamination,IM MED LTD,28577611,"41,253.75"
Department of Health,St. Helens&Knowsley Hospitals NHS Trust,30/11/2018,Med Equip Additions,Balance Sheet,ADVANTECH SURGICAL,28396468,"20,847.00"
Department of Health,St. Helens&Knowsley Hospitals NHS Trust,30/11/2018,Miscellaneous Expenditure,HSDU WHISTON,SYNERGY HEALTH (UK) LTD,28500620,"34,401.46"
Department of Health,St. Helens&Knowsley Hospitals NHS Trust,30/11/2018,Miscellaneous Expenditure,HSDU WHISTON,SYNERGY HEALTH (UK) LTD,28566151,"35,122.03"
Department of Health,St. Helens&Knowsley Hospitals NHS Trust,30/11/2018,Miscellaneous Expenditure,HSDU WHISTON,SYNERGY HEALTH (UK) LTD,28566161,"167,509.68"
Department of Health,St. Helens&Knowsley Hospitals NHS Trust,30/11/2018,Miscellaneous Expenditure,PFI ENABLING WORKS,NEW HOSPITALS (ST HELENS & KNOWSLEY) LTD,28698658,"1,462,987.29"
Department of Health,St. Helens&Knowsley Hospitals NHS Trust,30/11/2018,Injury Benefit Scheme,Balance Sheet,NHS BUSINESS SERVICES AUTHORITY,28774971,"4,333.05"
Department of Health,St. Helens&Knowsley Hospitals NHS Trust,30/11/2018,Various Supplies,Various Departments,NHS SUPPLY CHAIN,28536763,"161,141.55"
Department of Health,St. Helens&Knowsley Hospitals NHS Trust,30/11/2018,Various Supplies,Various Departments,NHS SUPPLY CHAIN,28586197,"160,495.61"
Department of Health,St. Helens&Knowsley Hospitals NHS Trust,30/11/2018,Various Supplies,Various Departments,NHS SUPPLY CHAIN,28657564,"153,708.52"
Department of Health,St. Helens&Knowsley Hospitals NHS Trust,30/11/2018,Various Supplies,Various Departments,NHS SUPPLY CHAIN,28730315,"165,867.20"
Department of Health,St. Helens&Knowsley Hospitals NHS Trust,30/11/2018,Various Supplies,Various Departments,NHS SUPPLY CHAIN,28778521,"166,193.05"
Department of Health,St. Helens&Knowsley Hospitals NHS Trust,30/11/2018,Injury Benefit Scheme,Balance Sheet,NHS BUSINESS SERVICES AUTHORITY,28774971,"29,414.58"
Department of Health,St. Helens&Knowsley Hospitals NHS Trust,30/11/2018,Rates,RATES/WATER ST HELENS,ST HELENS COUNCIL,28636559,"63,033.00"
Department of Health,St. Helens&Knowsley Hospitals NHS Trust,30/11/2018,Rates,RATES/WATER WHISTON,KNOWSLEY METROPOLITAN BOROUGH COUNCIL,28761700,"293,828.00"
Department of Health,St. Helens&Knowsley Hospitals NHS Trust,30/11/2018,SrvcsRecd-FoundationTrust,CHEMICAL PATHOLOGY DEPT,LANCASHIRE TEACHING HOSPITALS NHS FOUNDATION TRUST,28639730,"27,411.40"
Department of Health,St. Helens&Knowsley Hospitals NHS Trust,30/11/2018,SrvcsRecd-FoundationTrust,A + E MEDICAL STAFF WH,NORTH WEST BOROUGHS HEALTHCARE NHS FOUNDATION TRUST,28691389,"79,404.00"
Department of Health,St. Helens&Knowsley Hospitals NHS Trust,30/11/2018,SrvcsRecd-FoundationTrust,COMMUNITY SLA'S,NORTH WEST BOROUGHS HEALTHCARE NHS FOUNDATION TRUST,28709684,"657,451.00"
Department of Health,St. Helens&Knowsley Hospitals NHS Trust,30/11/2018,Stocks Raw Materials,Balance Sheet,NOVARTIS PHARMACEUTICALS UK LTD,28523989,"27,251.86"
Department of Health,St. Helens&Knowsley Hospitals NHS Trust,30/11/2018,Stocks Raw Materials,Balance Sheet,ALLIANCE HEALTHCARE DISTRIBUTION LTD,28553614,"281,830.55"
Department of Health,St. Helens&Knowsley Hospitals NHS Trust,30/11/2018,Stocks Raw Materials,Balance Sheet,HEALTHCARE AT HOME LTD,28711849,"92,922.32"
Department of Health,St. Helens&Knowsley Hospitals NHS Trust,30/11/2018,Stocks Raw Materials,Balance Sheet,HEALTHCARE AT HOME LTD,28711853,"80,204.56"
Department of Health,St. Helens&Knowsley Hospitals NHS Trust,30/11/2018,Stocks Raw Materials,Balance Sheet,HEALTHCARE AT HOME LTD,28711857,"73,698.59"
Department of Health,St. Helens&Knowsley Hospitals NHS Trust,30/11/2018,Stocks Raw Materials,Balance Sheet,ALLIANCE HEALTHCARE DISTRIBUTION LTD,28794254,"222,308.02"
Department of Health,St. Helens&Knowsley Hospitals NHS Trust,30/11/2018,Stocks Raw Materials,Balance Sheet,PHOENIX HEALTHCARE DISTRIBUTION LTD,28794255,"104,352.58"
Department of Health,St. Helens&Knowsley Hospitals NHS Trust,30/11/2018,Stocks Raw Materials,Balance Sheet,ALLOGA UK LTD,28794256,"142,242.55"
Department of Health,St. Helens&Knowsley Hospitals NHS Trust,30/11/2018,Stocks Raw Materials,Balance Sheet,AAH PHARMACEUTICALS LTD,28811533,"207,559.63"
Department of Health,St. Helens&Knowsley Hospitals NHS Trust,30/11/2018,Training Expenses,LEADERSHIP & ORGANISATIONAL DEVELOPMENT,INSTITUTE FOR ORGANISATIONAL DEVELOPMENT,28521207,"49,980.00"
Department of Health,St. Helens&Knowsley Hospitals NHS Trust,30/11/2018,VAT Cont Out Serv Inp Tax,Balance Sheet,LIAISON FINANCIAL SERVICES LTD,28711865,-581.45
Department of Health,St. Helens&Knowsley Hospitals NHS Trust,30/11/2018,VAT Cont Out Serv Inp Tax,Balance Sheet,EDDISONS COMMERCIAL PROPERTY MANAGEMENT LTD,28795673,"10,400.00"
Department of Health,St. Helens&Knowsley Hospitals NHS Trust,30/11/2018,Water,RATES/WATER WHISTON,WATER PLUS,28774732,"37,950.70"
Department of Health,St. Helens&Knowsley Hospitals NHS Trust,30/11/2018,X-Ray Film & Chemicals,RADIOGRAPHY WHISTON,ROYAL LIVERPOOL&BROADGREEN UNIVERSITY HOSPITALS NHS TRUST (THE),28811368,"26,264.53"
Department of Health,St. Helens&Knowsley Hospitals NHS Trust,30/11/2018,X-Ray Film & Chemicals,RADIOGRAPHY WHISTON,ROYAL LIVERPOOL&BROADGREEN UNIVERSITY HOSPITALS NHS TRUST (THE),28811371,"25,092.82"
